fUSD/lending_fUSD_20241020
["ID","MTS","AMOUNT","RATE_DAILY","PERIOD"]
[340556488,1729465840060,-130.27,0.00024185,4]
[340556489,1729465840075,-24413.95304392,0.00024185,4]
[340556490,1729465840085,-467.2368,0.00024185,2]
[340556491,1729465840094,-4424.6065,0.00024185,2]
[340556492,1729465840106,-38987.94365608,0.00024185,2]
[340556493,1729465840117,-1892.27757239,0.00024185,2]
[340556494,1729465840128,-25920.84297153,0.00024185,2]
[340556495,1729465840138,-500.0,0.00024194,2]
[340556496,1729465840147,-180.51750559,0.00024194,2]
[340556497,1729465840156,-153.78881166,0.00024195,2]
[340556498,1729465840166,-500.0,0.00024195,2]
[340556499,1729465840175,-711.3233,0.00024195,2]
[340556500,1729465840184,-1000.0,0.00024195,2]
[340556501,1729465840194,-316.3921,0.00024195,2]
[340556502,1729465840203,-220120.05870809,0.00024195,2]
[340556506,1729465840508,-2425.22380697,0.00024195,2]
[340556510,1729465843527,-874.42,0.00021481,2]
[340556511,1729465843537,-874.42,0.00023745,2]
[340556512,1729465843546,-8149.69231049,0.00024195,2]
[340556513,1729465843558,-4164.12,0.00024195,2]
[340556514,1729465843574,-946.77464092,0.00024195,2]
[340556515,1729465843585,-5006.65999952,0.00024195,2]
[340556536,1729465846371,-3772.81682659,0.00024195,2]
[340556544,1729465846638,-500.0,0.00024184,2]
[340556545,1729465846653,-500.0,0.00024184,2]
[340556546,1729465846668,-500.0,0.00024184,2]
[340556547,1729465846684,-414.65370742,0.00024195,2]
[340556548,1729465846699,-2515.68389385,0.00024252,2]
[340556549,1729465846714,-480.0,0.00024273,2]
[340556550,1729465846730,-1367.0227282,0.00024275,4]
[340556551,1729465846746,-3739.69420911,0.00024275,4]
[340556552,1729465846764,-10278.42040917,0.00024275,4]
[340556553,1729465925878,130.27,0.0001,2]
[340556554,1729465925899,119.73,0.0001,2]
[340556555,1729465996885,500.0,0.00026708,120]
[340556556,1729466059125,87.66289707,0.00010959,2]
[340556557,1729466059149,64.49710293,0.00010959,2]
[340556558,1729466059815,-150.0,0.000117,2]
[340556559,1729466060122,-176.76200628,0.000119,2]
[340556561,1729466675357,200.0,0.00027,60]
[340556562,1729466708406,1485135.31342746,0.00011,2]
[340556563,1729466967100,-183.33,0.00010959,2]
[340556564,1729466967120,-1752.18049719,0.00010998,2]
[340556565,1729466967140,-300.0,0.00010998,2]
[340556566,1729466967160,-20656.87830475,0.00010999,2]
[340556567,1729466967179,-150.0,0.00010999,2]
[340556568,1729466967199,-500.0,0.00010999,2]
[340556569,1729466967219,-187.86808287,0.00010999,2]
[340556570,1729466967238,-364.38872582,0.00010999,2]
[340556571,1729466967258,-500.0,0.00010999,2]
[340556572,1729466967282,-16187.42032937,0.00011,2]
[340556573,1729466967313,-58953.55159793,0.00011,2]
[340556574,1729467008057,-155.83799372,0.00010898,2]
[340556575,1729467009657,-176.76200628,0.00010898,2]
[340556586,1729467031558,-20.92401252,0.00010898,2]
[340556587,1729467031568,-300.0,0.00010999,2]
[340556588,1729467031577,-15169.77598748,0.00011,2]
[340556589,1729467031613,-1287.62195801,0.00011,2]
[340556590,1729467031654,-323.95615414,0.00011,2]
[340556591,1729467031688,-60376.88006065,0.00011,2]
[340556592,1729467031724,-13850.77025491,0.00011,2]
[340556593,1729467031762,-14075.31216065,0.00011,2]
[340556594,1729467031773,-332835.7363346,0.00011,2]
[340556595,1729467031784,-169602.37523534,0.00011,2]
[340556596,1729467031799,-469.3741254,0.00011,2]
[340556606,1729467037671,-1364.84,0.00011,2]
[340556607,1729467037986,-925.57952197,0.00011,2]
[340556632,1729467039619,-421.66372381,0.00011,2]
[340556633,1729467039669,-277.62782763,0.00011,2]
[340556634,1729467039705,-17813.97800892,0.00011,2]
[340556635,1729467039738,-300.0,0.00011,2]
[340556636,1729467039773,-5244.58188863,0.00011,2]
[340556637,1729467039808,-349.1489,0.00011,2]
[340556650,1729467042831,-500.57827625,0.00011,2]
[340556651,1729467042843,-512.22547522,0.00011,2]
[340556652,1729467042906,-3113.36788627,0.00011,2]
[340556653,1729467043027,-153980.48479432,0.00011,2]
[340556654,1729467043038,-150.0,0.000117,2]
[340556655,1729467043048,-1046.03303729,0.000118,2]
[340556656,1729467043059,-1540.88395148,0.000119,2]
[340556657,1729467043070,-300.0,0.00012,2]
[340556658,1729467043079,-420.0,0.00012087,2]
[340556659,1729467043089,-287.0,0.00013282,2]
[340556660,1729467043099,-1540.88395143,0.00013337,2]
[340556661,1729467043109,-371.42,0.000137,2]
[340556662,1729467043118,-371.42,0.000137,2]
[340556663,1729467043127,-371.42,0.000137,2]
[340556664,1729467043137,-371.42,0.000137,2]
[340556665,1729467043147,-371.42,0.000137,2]
[340556666,1729467043157,-255175.444221,0.000138,2]
[340556667,1729467043166,-32788.9166926,0.000139,2]
[340556668,1729467043176,-350.0,0.00014,2]
[340556669,1729467043185,-1540.88395143,0.00014774,2]
[340556670,1729467043195,-2049.30729329,0.0001589,2]
[340556671,1729467043204,-17066.47,0.000159,2]
[340556672,1729467043214,-400.0,0.00016,2]
[340556673,1729467043223,-1540.88395143,0.0001621,2]
[340556674,1729467043233,-499.99,0.0001726,2]
[340556675,1729467043242,-183.33,0.00017592,2]
[340556676,1729467043252,-1540.88395143,0.00017647,2]
[340556677,1729467043261,-1046.03303728,0.00017848,2]
[340556678,1729467043271,-2049.30729329,0.0001799,2]
[340556679,1729467043280,-450.0,0.00018,2]
[340556680,1729467043292,-560.0,0.00018114,2]
[340556681,1729467043302,-4539.912,0.00018114,2]
[340556682,1729467043311,-3359.0,0.00018124,2]
[340556683,1729467043321,-1909.0,0.00018124,2]
[340556684,1729467043331,-809.0,0.00018124,2]
[340556685,1729467043342,-812.0,0.00018124,2]
[340556686,1729467043352,-450.0,0.00018124,2]
[340556687,1729467043362,-1245.0,0.00018124,2]
[340556688,1729467043371,-150.0,0.00018124,2]
[340556689,1729467043382,-1540.88395143,0.00019084,2]
[340556690,1729467043391,-2049.30729329,0.0001999,3]
[340556691,1729467043401,-500.0,0.0002,2]
[340556692,1729467043411,-351.252194,0.0002,2]
[340556693,1729467043421,-1540.88395143,0.00020521,2]
[340556694,1729467043431,-500.0,0.00020547,2]
[340556695,1729467043441,-288.0,0.00020727,2]
[340556696,1729467043451,-250.0,0.00020849,2]
[340556697,1729467043461,-188.17,0.00020962,2]
[340556698,1729467043470,-205.392,0.00021124,2]
[340556699,1729467043481,-217.43,0.00021303,2]
[340556700,1729467043490,-250.0,0.00021303,2]
[340556701,1729467043500,-500.0,0.00021479,2]
[340556702,1729467043509,-500.0,0.00021479,2]
[340556703,1729467043519,-500.0,0.00021479,2]
[340556704,1729467043528,-500.0,0.00021479,2]
[340556705,1729467043539,-500.0,0.00021479,2]
[340556706,1729467043548,-500.0,0.00021479,2]
[340556707,1729467043557,-8197.22917316,0.00021688,3]
[340556708,1729467043566,-153.38,0.00021756,2]
[340556709,1729467043576,-250.0,0.00021852,2]
[340556710,1729467043586,-712.0,0.00021884,2]
[340556711,1729467043595,-169.72,0.00021918,2]
[340556712,1729467043604,-985.41,0.00021918,2]
[340556713,1729467043614,-2751.0,0.00021922,2]
[340556714,1729467043623,-1540.88395143,0.00021957,2]
[340556715,1729467043632,-550.0,0.00022,2]
[340556716,1729467043642,-1500.0,0.00022052,2]
[340556717,1729467043651,-180.0,0.00022924,2]
[340556718,1729467043661,-1000.0,0.000231,2]
[340556719,1729467043670,-200.986,0.0002318,3]
[340556720,1729467043680,-167.68,0.00023297,2]
[340556721,1729467043690,-2049.30729329,0.00023308,4]
[340556722,1729467043699,-288.0,0.00023318,2]
[340556723,1729467043708,-1540.88395143,0.00023394,2]
[340556724,1729467043717,-284.03,0.00023535,2]
[340556725,1729467043726,-692.3283,0.00023709,2]
[340556726,1729467043735,-555.0,0.00023855,2]
[340556727,1729467043745,-18443.7656396,0.0002387,4]
[340556728,1729467043755,-366735.80923902,0.0002388,2]
[340556729,1729467043764,-1046.03303728,0.00023895,2]
[340556730,1729467043773,-500.0,0.00023995,2]
[340556731,1729467043782,-600.0,0.00024,2]
[340556732,1729467043792,-169.0,0.00024,4]
[340556733,1729467043801,-1500.0,0.00024026,2]
[340556734,1729467043811,-1342.1088387,0.00024036,2]
[340556735,1729467043820,-422.53343296,0.00024071,2]
[340556736,1729467043830,-1500.0,0.00024153,2]
[340556737,1729467043839,-1000.0,0.00024171,2]
[340556738,1729467043849,-1000.0,0.00024171,2]
[340556739,1729467043859,-761.9464,0.00024171,2]
[340556740,1729467043869,-700.0,0.00024174,3]
[340556741,1729467043879,-7500.0,0.00024175,2]
[340556742,1729467043888,-1558.2473,0.00024175,2]
[340556743,1729467043897,-144273.8804,0.00024175,2]
[340556744,1729467043906,-157.54710304,0.00024185,2]
[340556745,1729467043915,-157.36847044,0.00024191,2]
[340556746,1729467043924,-563.58672692,0.00024199,2]
[340556747,1729467043934,-179.04439571,0.00024199,2]
[340556748,1729467043944,-175.05,0.000242,2]
[340556749,1729467043953,-183.33,0.00024225,2]
[340556750,1729467043963,-890655.16564096,0.00024284,16]
[340556751,1729467043972,-176.13466539,0.00024291,2]
[340556752,1729467043982,-150.01,0.00024291,2]
[340556753,1729467043992,-195.26060431,0.00024293,7]
[340556754,1729467044001,-375.0,0.00024294,2]
[340556755,1729467044011,-425565.03325062,0.00024295,4]
[340556756,1729467044025,-175905.42206524,0.00024295,4]
[340556757,1729467044035,-3637.5487713,0.00024299,2]
[340556758,1729467044045,-7908.9760933,0.00024304,2]
[340556759,1729467044055,-50095.6731985,0.00024304,2]
[340556760,1729467044068,-620.221668,0.0002436,2]
[340556761,1729467044078,-76534.18429983,0.00024377,7]
[340556762,1729467044089,-154.880231,0.00024377,2]
[340556763,1729467044098,-110458.39364624,0.00024399,2]
[340556764,1729467044108,-157.54710301,0.000244,2]
[340556765,1729467044117,-802.67715878,0.000245,2]
[340556766,1729467044127,-563.5867269,0.00024515,2]
[340556767,1729467044137,-150.0,0.000246,2]
[340556768,1729467044146,-310.8,0.000246,2]
[340556769,1729467044156,-1010.66,0.000246,2]
[340556770,1729467044165,-157.54710301,0.00024616,2]
[340556771,1729467044175,-712.0,0.0002462,2]
[340556772,1729467044185,-1000.0,0.00024658,2]
[340556773,1729467044195,-246.45,0.00024658,4]
[340556774,1729467044206,-284.03,0.00024711,2]
[340556775,1729467044215,-7153.41323835,0.00024731,2]
[340556776,1729467044224,-184.32096901,0.00024731,2]
[340556777,1729467044234,-2908.54435715,0.0002475,2]
[340556778,1729467044244,-184.32096899,0.00024816,2]
[340556779,1729467044253,-6350.19481351,0.00024831,7]
[340556780,1729467044263,-6350.19481351,0.00024831,7]
[340556781,1729467044273,-6350.19481351,0.00024831,7]
[340556782,1729467044283,-6350.19481351,0.00024831,7]
[340556783,1729467044293,-6350.19481351,0.00024831,7]
[340556784,1729467044304,-6350.19481351,0.00024831,7]
[340556785,1729467044315,-6350.19481351,0.00024831,7]
[340556786,1729467044325,-6350.19481351,0.00024831,7]
[340556787,1729467044335,-6350.19481351,0.00024831,7]
[340556788,1729467044346,-6350.19481351,0.00024831,7]
[340556789,1729467044356,-6350.19481351,0.00024831,7]
[340556790,1729467044365,-6350.19481351,0.00024831,7]
[340556791,1729467044375,-6350.19481351,0.00024831,7]
[340556792,1729467044384,-6350.19481351,0.00024831,7]
[340556793,1729467044394,-6350.19481351,0.00024831,7]
[340556794,1729467044404,-6350.19481351,0.00024831,7]
[340556795,1729467044414,-4366.37708736,0.00024831,7]
[340556796,1729467044426,-1983.81772615,0.00024831,7]
[340556797,1729467044436,-6350.19481351,0.00024831,7]
[340556798,1729467044446,-6350.19481351,0.00024831,7]
[340556799,1729467044455,-6350.69,0.00024831,7]
[340556800,1729467044465,-9525.30472026,0.00024831,7]
[340556801,1729467044475,-9525.30472026,0.00024831,7]
[340556802,1729467044485,-9525.30472026,0.00024831,7]
[340556803,1729467044495,-9525.30472026,0.00024831,7]
[340556804,1729467044505,-9525.30472026,0.00024831,7]
[340556805,1729467044515,-9525.30472026,0.00024831,7]
[340556806,1729467044524,-9525.30472026,0.00024831,7]
[340556807,1729467044534,-9525.30472026,0.00024831,7]
[340556808,1729467044544,-9525.30472026,0.00024831,7]
[340556809,1729467044554,-9525.30472026,0.00024831,7]
[340556810,1729467044564,-9525.30472026,0.00024831,7]
[340556811,1729467044574,-8090.29491512,0.00024831,7]
[340556812,1729467044724,-254.71817303,0.00024831,7]
[340556813,1729467044736,-415.3499995,0.00024831,7]
[340556820,1729467045731,-764.94163261,0.00024831,7]
[340556821,1729467045740,-1243.48985478,0.00024831,7]
[340556822,1729467045856,-8281.81486548,0.00024831,7]
[340556823,1729467045866,-9525.30472026,0.00024831,7]
[340556824,1729467045875,-9525.30472026,0.00024831,7]
[340556825,1729467045884,-9525.30472026,0.00024831,7]
[340556826,1729467045894,-443.45358172,0.00024831,7]
[340556827,1729467045909,-9081.85113854,0.00024831,7]
[340556828,1729467045918,-1568.7200193,0.00024831,7]
[340556832,1729467193978,2086.758149,0.00026512,120]
[340556833,1729467198790,500.0,0.00026512,120]
[340556834,1729467202434,200.0,0.00026512,120]
[340556835,1729467742440,150.0,0.0001,2]
[340556836,1729467742461,100.0,0.0001,2]
[340556838,1729467797011,500.0,0.00026815,120]
[340556839,1729467800390,200.0,0.00026815,120]
[340556840,1729467827432,-150.0,0.00010959,2]
[340556841,1729467827607,-6.67,0.00010959,2]
[340556842,1729468106815,-179.25,0.00010959,2]
[340556843,1729468106838,-300.0,0.00012,2]
[340556844,1729468106862,-350.0,0.00014,2]
[340556845,1729468173140,-3303.0,0.00015,3]
[340556846,1729468173163,-400.0,0.00016,2]
[340556847,1729468173185,-1052.76094216,0.0001726,2]
[340556848,1729468173213,-150.0,0.00017973,2]
[340556849,1729468173237,-450.0,0.00018,2]
[340556850,1729468173260,-560.0,0.00019506,2]
[340556851,1729468173281,-162.014,0.00019506,2]
[340556852,1729468173302,-1150.0,0.00019506,2]
[340556853,1729468173325,-709.13725784,0.00019506,2]
[340556858,1729468231819,-176.76200628,0.000159,2]
[340556859,1729468231829,-226.86274216,0.00019506,2]
[340556860,1729468231839,-555.0,0.00019506,2]
[340556861,1729468231848,-150.0,0.00019506,2]
[340556862,1729468231857,-150.0,0.00019506,2]
[340556863,1729468231867,-211.286,0.00019506,2]
[340556864,1729468231876,-124.53426969,0.00019506,2]
[340556865,1729468231888,-25.46573031,0.00019506,2]
[340556866,1729468231898,-156.67,0.00019961,2]
[340556867,1729468231907,-500.0,0.0002,2]
[340556868,1729468231917,-150.0,0.0002,2]
[340556869,1729468231926,-185.06446969,0.0002,2]
[340556870,1729468231938,-314.92553031,0.0002,2]
[340556871,1729468231948,-159.5408261,0.00020948,2]
[340556872,1729468231960,-734.1991739,0.00020948,2]
[340556873,1729468231970,-1049.00824067,0.00021504,2]
[340556874,1729468231982,-731.15094616,0.00021504,2]
[340556875,1729468231993,-2903.71306986,0.00021504,2]
[340556876,1729468232006,-3421.55845167,0.00021504,2]
[340556877,1729468232017,-2228.53585342,0.00021504,2]
[340556878,1729468232029,-7986.63385771,0.00021504,2]
[340556879,1729468232039,-550.0,0.00022,2]
[340556880,1729468232048,-150.0,0.00022506,2]
[340556881,1729468232058,-250.0,0.00022879,2]
[340556882,1729468232068,-821.17,0.000229,2]
[340556883,1729468232077,-250.0,0.00022968,2]
[340556884,1729468232086,-250.0,0.00022989,2]
[340556885,1729468232095,-893.74,0.00023212,2]
[340556886,1729468232105,-217.43,0.00023266,2]
[340556887,1729468232114,-167.53,0.00023266,2]
[340556889,1729468232123,-160.789,0.00023294,3]
[340556891,1729468232133,-1000.0,0.00023302,2]
[340556893,1729468232143,-169.72,0.00023554,2]
[340556895,1729468232152,-170.41,0.00023645,2]
[340556897,1729468232162,-375.0,0.00023879,2]
[340556898,1729468232171,-600.0,0.00024,2]
[340556900,1729468232180,-190.86438807,0.00024085,2]
[340556902,1729468232190,-150.0,0.000242,2]
[340556904,1729468232199,-600.0,0.00024291,9]
[340556906,1729468232209,-600.0,0.00024291,9]
[340556909,1729468232219,-600.0,0.00024291,9]
[340556913,1729468232229,-600.0,0.00024291,9]
[340556916,1729468232240,-600.0,0.00024291,9]
[340556918,1729468232249,-600.0,0.00024291,9]
[340556920,1729468232259,-600.0,0.00024291,9]
[340556922,1729468232268,-600.0,0.00024291,9]
[340556924,1729468232278,-600.0,0.00024291,9]
[340556926,1729468232287,-600.0,0.00024291,9]
[340556928,1729468232296,-1000.0,0.00024658,2]
[340556930,1729468232305,-7656.57365917,0.00024731,2]
[340556932,1729468232314,-1550.4,0.00024731,2]
[340556934,1729468232323,-304.58,0.000248,2]
[340556936,1729468232332,-1004.54,0.000248,2]
[340556938,1729468232342,-7500.0,0.00024801,2]
[340556939,1729468232351,-7965.5686794,0.00024824,2]
[340556941,1729468232360,-721.3017038,0.00024824,2]
[340556943,1729468232369,-170.41,0.00024827,2]
[340556945,1729468232379,-540.1289791,0.00024831,7]
[340556947,1729468232389,-540.1289791,0.00024831,7]
[340556949,1729468232399,-540.1289791,0.00024831,7]
[340556951,1729468232408,-540.1289791,0.00024831,7]
[340556952,1729468232418,-540.1289791,0.00024831,7]
[340556953,1729468232427,-540.1289791,0.00024831,7]
[340556954,1729468232436,-540.1289791,0.00024831,7]
[340556955,1729468232446,-540.1289791,0.00024831,7]
[340556956,1729468232455,-540.1289791,0.00024831,7]
[340556957,1729468232464,-540.1289791,0.00024831,7]
[340556958,1729468232473,-540.1289791,0.00024831,7]
[340556959,1729468232482,-540.1289791,0.00024831,7]
[340556960,1729468232491,-540.1289791,0.00024831,7]
[340556961,1729468232501,-540.1289791,0.00024831,7]
[340556962,1729468232510,-540.1289791,0.00024831,7]
[340556963,1729468232520,-540.1289791,0.00024831,7]
[340556964,1729468232529,-540.1289791,0.00024831,7]
[340556965,1729468232539,-540.1289791,0.00024831,7]
[340556966,1729468232548,-540.1289791,0.00024831,7]
[340556967,1729468232558,-540.62,0.00024831,7]
[340556968,1729468232566,-810.20596865,0.00024831,7]
[340556969,1729468232575,-810.20596865,0.00024831,7]
[340556970,1729468232585,-810.20596865,0.00024831,7]
[340556971,1729468232596,-810.20596865,0.00024831,7]
[340556972,1729468232605,-810.20596865,0.00024831,7]
[340556973,1729468232615,-810.20596865,0.00024831,7]
[340556974,1729468232625,-810.20596865,0.00024831,7]
[340556975,1729468232635,-810.20596865,0.00024831,7]
[340556976,1729468232644,-810.20596865,0.00024831,7]
[340556977,1729468232654,-810.20596865,0.00024831,7]
[340556978,1729468232663,-810.20596865,0.00024831,7]
[340556979,1729468232673,-810.20596865,0.00024831,7]
[340556980,1729468232682,-810.20596865,0.00024831,7]
[340556981,1729468232691,-810.20596865,0.00024831,7]
[340556982,1729468232701,-810.20596865,0.00024831,7]
[340556983,1729468232710,-810.20596865,0.00024831,7]
[340556984,1729468232720,-381.17476246,0.00024831,7]
[340556985,1729468233366,-429.03120619,0.00024831,7]
[340556986,1729468233376,-810.20596865,0.00024831,7]
[340556987,1729468233386,-810.20596865,0.00024831,7]
[340556988,1729468233395,-1517.54350695,0.00024831,7]
[340556989,1729468233405,-1517.54350695,0.00024831,7]
[340556990,1729468233415,-1517.54350695,0.00024831,7]
[340556991,1729468233424,-1517.54350695,0.00024831,7]
[340556992,1729468233434,-1135.51740596,0.00024831,7]
[340556993,1729468233445,-382.02610099,0.00024831,7]
[340556994,1729468233455,-1517.54350695,0.00024831,7]
[340556995,1729468233464,-1517.54350695,0.00024831,7]
[340556996,1729468233474,-1517.54350695,0.00024831,7]
[340556997,1729468233483,-1517.54350695,0.00024831,7]
[340556998,1729468233492,-1517.54350695,0.00024831,7]
[340556999,1729468233502,-1517.54350695,0.00024831,7]
[340557000,1729468233512,-1517.54350695,0.00024831,7]
[340557001,1729468233521,-1517.54350695,0.00024831,7]
[340557002,1729468233531,-1517.54350695,0.00024831,7]
[340557003,1729468233541,-1517.54350695,0.00024831,7]
[340557004,1729468233550,-1517.54350695,0.00024831,7]
[340557005,1729468233560,-1517.54350695,0.00024831,7]
[340557006,1729468233569,-1517.54350695,0.00024831,7]
[340557007,1729468233578,-1517.54350695,0.00024831,7]
[340557008,1729468233587,-1518.04,0.00024831,7]
[340557009,1729468233599,-2276.32776043,0.00024831,7]
[340557010,1729468233609,-2276.32776043,0.00024831,7]
[340557011,1729468233618,-2276.32776043,0.00024831,7]
[340557012,1729468233627,-2276.32776043,0.00024831,7]
[340557013,1729468233636,-2276.32776043,0.00024831,7]
[340557014,1729468233646,-2276.32776043,0.00024831,7]
[340557015,1729468233655,-2276.32776043,0.00024831,7]
[340557016,1729468233665,-2276.32776043,0.00024831,7]
[340557017,1729468233674,-2276.32776043,0.00024831,7]
[340557018,1729468233684,-2276.32776043,0.00024831,7]
[340557019,1729468233693,-2276.32776043,0.00024831,7]
[340557020,1729468233703,-2276.32776043,0.00024831,7]
[340557021,1729468233712,-2276.32776043,0.00024831,7]
[340557022,1729468233721,-2276.32776043,0.00024831,7]
[340557023,1729468233730,-2276.32776043,0.00024831,7]
[340557024,1729468233739,-2276.32776043,0.00024831,7]
[340557025,1729468233749,-2276.32776043,0.00024831,7]
[340557026,1729468233759,-2276.32776043,0.00024831,7]
[340557027,1729468233768,-2276.32776043,0.00024831,7]
[340557028,1729468233778,-1820.76111658,0.00024831,7]
[340557029,1729468233787,-1820.76111658,0.00024831,7]
[340557030,1729468233797,-1820.76111658,0.00024831,7]
[340557031,1729468233806,-1820.76111658,0.00024831,7]
[340557032,1729468233815,-1820.76111658,0.00024831,7]
[340557033,1729468233825,-1820.76111658,0.00024831,7]
[340557034,1729468233835,-1820.76111658,0.00024831,7]
[340557035,1729468233844,-1820.76111658,0.00024831,7]
[340557036,1729468233853,-1820.76111658,0.00024831,7]
[340557037,1729468233862,-1820.76111658,0.00024831,7]
[340557038,1729468233871,-1820.76111658,0.00024831,7]
[340557039,1729468233880,-1820.76111658,0.00024831,7]
[340557040,1729468233890,-1820.76111658,0.00024831,7]
[340557041,1729468233899,-1820.76111658,0.00024831,7]
[340557042,1729468233909,-1820.76111658,0.00024831,7]
[340557043,1729468233917,-1820.76111658,0.00024831,7]
[340557044,1729468233925,-1820.76111658,0.00024831,7]
[340557045,1729468233933,-1820.76111658,0.00024831,7]
[340557046,1729468233943,-1820.76111658,0.00024831,7]
[340557047,1729468233952,-1821.26,0.00024831,7]
[340557048,1729468233962,-2731.15417487,0.00024831,7]
[340557049,1729468233971,-2731.15417487,0.00024831,7]
[340557050,1729468233980,-2731.15417487,0.00024831,7]
[340557051,1729468233990,-2731.15417487,0.00024831,7]
[340557052,1729468233999,-2731.15417487,0.00024831,7]
[340557053,1729468234008,-2731.15417487,0.00024831,7]
[340557054,1729468234017,-2731.15417487,0.00024831,7]
[340557055,1729468234026,-2731.15417487,0.00024831,7]
[340557056,1729468234035,-2731.15417487,0.00024831,7]
[340557057,1729468234044,-2731.15417487,0.00024831,7]
[340557058,1729468234054,-2731.15417487,0.00024831,7]
[340557059,1729468234063,-2731.15417487,0.00024831,7]
[340557060,1729468234072,-2731.15417487,0.00024831,7]
[340557061,1729468234081,-2731.15417487,0.00024831,7]
[340557062,1729468234091,-2731.15417487,0.00024831,7]
[340557063,1729468234100,-2731.15417487,0.00024831,7]
[340557064,1729468234109,-2731.15417487,0.00024831,7]
[340557065,1729468234118,-2731.15417487,0.00024831,7]
[340557066,1729468234127,-2731.15417487,0.00024831,7]
[340557067,1729468234136,-157.54710301,0.00024831,2]
[340557068,1729468234146,-150.0,0.00024831,7]
[340557069,1729468234155,-266.0,0.00024831,7]
[340557070,1729468234165,-150.0,0.00024831,7]
[340557071,1729468234174,-150.0,0.00024831,7]
[340557072,1729468234184,-500.0,0.00024831,7]
[340557073,1729468234193,-563.5867269,0.00024831,2]
[340557074,1729468234203,-179.04439571,0.00024831,2]
[340557075,1729468234212,-45892.7346559,0.00024831,2]
[340557076,1729468234221,-184.32096899,0.00024831,2]
[340557077,1729468234231,-10123.0527514,0.00024839,4]
[340557078,1729468234240,-150.0,0.00024848,2]
[340557079,1729468234250,-535.59,0.00024848,2]
[340557080,1729468234259,-290.51,0.00024848,2]
[340557081,1729468234269,-150.0,0.00024848,2]
[340557082,1729468234278,-300.0,0.00024848,2]
[340557083,1729468234287,-535.59,0.00024848,2]
[340557084,1729468234296,-150.0,0.00024848,2]
[340557085,1729468234306,-150.0,0.00024848,2]
[340557086,1729468234315,-150.0,0.00024848,2]
[340557087,1729468234324,-150.0,0.00024848,2]
[340557088,1729468234333,-150.0,0.00024848,2]
[340557089,1729468234343,-359.47,0.00024848,2]
[340557090,1729468234352,-359.47,0.00024848,2]
[340557091,1729468234361,-150.0,0.00024848,2]
[340557092,1729468234371,-359.47,0.00024848,2]
[340557093,1729468234380,-535.59,0.00024848,2]
[340557094,1729468234390,-429.92,0.00024848,2]
[340557095,1729468234406,-150.0,0.00024848,2]
[340557096,1729468234562,-150.0,0.00024848,2]
[340557097,1729468234571,-150.0,0.00024848,2]
[340557098,1729468234580,-150.0,0.00024848,2]
[340557099,1729468234589,-1071.08,0.00024848,2]
[340557100,1729468234600,-359.47,0.00024848,2]
[340557101,1729468234610,-150.0,0.00024848,2]
[340557102,1729468234619,-429.92,0.00024848,2]
[340557103,1729468234629,-150.0,0.00024848,2]
[340557104,1729468234639,-150.0,0.00024848,2]
[340557105,1729468234648,-535.59,0.00024848,2]
[340557106,1729468234658,-150.0,0.00024848,2]
[340557107,1729468234668,-429.92,0.00024848,2]
[340557108,1729468234678,-359.47,0.00024848,2]
[340557109,1729468234687,-150.0,0.00024848,2]
[340557110,1729468234697,-150.0,0.00024848,2]
[340557111,1729468234706,-359.47,0.00024848,2]
[340557112,1729468234716,-150.0,0.00024848,2]
[340557113,1729468234725,-150.0,0.00024848,2]
[340557114,1729468234734,-150.0,0.00024848,2]
[340557115,1729468234744,-429.92,0.00024848,2]
[340557116,1729468234754,-535.59,0.00024848,2]
[340557117,1729468234764,-535.59,0.00024848,2]
[340557118,1729468234774,-429.92,0.00024848,2]
[340557119,1729468234784,-150.0,0.00024848,2]
[340557120,1729468234794,-150.0,0.00024848,2]
[340557121,1729468234803,-150.0,0.00024848,2]
[340557122,1729468234813,-359.47,0.00024848,2]
[340557123,1729468234822,-429.92,0.00024848,2]